bitfinex-derivatives/quotes_BTCF0:USTF0_20250208
["timestamp","ask_amount","ask_price","bid_price","bid_amount"]
[1738983669805,0.0619,96895.0,96889.0,0.3608]
[1738983670196,0.0619,96895.0,96889.0,0.3618]
[1738983670994,0.0709,96895.0,96889.0,0.3628]
[1738983672308,0.0709,96895.0,96889.0,0.002]
[1738983672700,0.3608,96890.0,96889.0,0.002]
[1738983672898,0.2063867,96882.0,96875.0,0.18332405]
[1738983673210,0.3608,96879.0,96875.0,0.18332405]
[1738983673405,0.11336,96878.0,96875.0,0.18332405]
[1738983674001,0.11336,96878.0,96875.0,0.18432405]
[1738983674706,0.11836,96878.0,96875.0,0.18332405]
[1738983675304,0.324755,96878.0,96875.0,0.18332405]
[1738983676001,0.324755,96878.0,96860.0,0.12273859]
[1738983677010,0.11836,96878.0,96860.0,0.12273859]
[1738983677209,0.20641,96871.0,96860.0,0.12273859]
[1738983677413,0.2064134,96869.0,96860.0,0.12273859]
[1738983680013,0.0646,96870.0,96860.0,0.12273859]
[1738983680214,0.2074134,96869.0,96860.0,0.12273859]
[1738983680903,0.2074134,96869.0,96861.0,0.18332405]
[1738983681408,0.2064134,96869.0,96861.0,0.18332405]
[1738983682803,0.2074134,96869.0,96861.0,0.18332405]
[1738983684013,0.2074134,96869.0,96862.0,0.18332405]
[1738983686021,0.001,96869.0,96862.0,0.18332405]
[1738983686321,0.5672262,96863.0,96862.0,0.17385956]
[1738983687913,0.5672262,96863.0,96862.0,0.17485956]
[1738983688916,0.5672262,96863.0,96862.0,0.003]
[1738983690917,0.5672262,96863.0,96853.0,0.00015484]
[1738983691107,0.2064447,96855.0,96853.0,0.00015484]
[1738983693222,0.5672281,96863.0,96855.0,0.2064426]
[1738983693416,0.5672281,96863.0,96856.0,0.0923]
[1738983694221,0.2064281,96863.0,96856.0,0.0923]
[1738983694618,0.2094281,96863.0,96857.0,0.24443206]
[1738983696308,0.21995969,96863.0,96857.0,0.24443206]
[1738983696623,0.21695969,96863.0,96857.0,0.24443206]
[1738983696921,0.21995969,96863.0,96857.0,0.24443206]
[1738983697120,0.21995969,96863.0,96862.0,0.24443206]
[1738983698025,0.01353159,96863.0,96862.0,0.24443206]
[1738983698322,0.003,96863.0,96862.0,0.24443206]
[1738983700216,0.003,96863.0,96860.0,0.2064319]
[1738983700623,0.003,96863.0,96861.0,0.2064301]
[1738983702123,0.07996,96870.0,96855.0,0.3363315]
[1738983702319,0.0903791,96870.0,96863.0,0.2064258]
[1738983703225,0.0953791,96870.0,96863.0,0.2064258]
[1738983703622,0.0953791,96870.0,96867.0,0.3608]
[1738983703623,0.005,96870.0,96867.0,0.3608]
[1738983703827,0.005,96870.0,96868.0,0.0309]
[1738983705222,0.005,96870.0,96869.0,0.2064134]
[1738983705423,0.00015457,96872.0,96869.0,0.2064134]
[1738983705624,0.005,96870.0,96869.0,0.2064134]
[1738983706526,0.00015457,96872.0,96869.0,0.2064134]
[1738983706727,0.00615457,96872.0,96869.0,0.2074134]
[1738983707231,0.00015457,96872.0,96869.0,0.2064134]
[1738983707422,0.005,96870.0,96869.0,0.2064134]
[1738983708825,0.00615457,96872.0,96869.0,0.2074134]
[1738983709321,0.00015457,96872.0,96869.0,0.2064134]
[1738983709520,0.005,96870.0,96869.0,0.2064134]
[1738983710032,0.00615457,96872.0,96869.0,0.2074134]
[1738983710425,0.00615457,96872.0,96871.0,0.3608]
[1738983711628,0.00015457,96872.0,96871.0,0.3608]
[1738983712327,0.07924,96883.0,96881.0,0.2063875]
[1738983712528,0.08933617,96883.0,96881.0,0.2063875]
[1738983713236,0.07924,96883.0,96881.0,0.2063875]
[1738983713533,0.07924,96883.0,96881.0,0.2073875]
[1738983714333,0.07908,96890.0,96889.0,0.2063689]
[1738983714832,0.0318,96896.0,96889.0,0.2063689]
[1738983714833,0.01022086,96891.0,96889.0,0.2063689]
[1738983715037,0.0318,96896.0,96881.0,0.002]
[1738983715038,0.07916,96890.0,96881.0,0.002]
[1738983715226,0.07916,96890.0,96882.0,0.2063858]
[1738983715430,0.07916,96890.0,96881.0,0.002]
[1738983715735,0.07916,96890.0,96889.0,0.001]
[1738983715937,0.08216,96890.0,96889.0,0.002]
[1738983716540,0.08216,96890.0,96889.0,0.001]
[1738983717025,0.08216,96890.0,96888.0,0.5671717]
[1738983718238,0.08716,96890.0,96889.0,0.001]
[1738983718740,0.08716,96890.0,96888.0,0.5677717]
[1738983718741,0.07916,96890.0,96888.0,0.3614]
[1738983718939,0.08116,96890.0,96888.0,0.3608]
[1738983719434,0.07916,96890.0,96888.0,0.3608]
[1738983719630,0.08116,96890.0,96888.0,0.3608]
[1738983720439,0.08116,96890.0,96883.0,0.24547525]
[1738983720739,0.2063777,96886.0,96883.0,0.24547525]
[1738983720932,0.0318,96885.0,96883.0,0.24547525]
[1738983721237,0.0635,96885.0,96883.0,0.24547525]
[1738983723737,0.0635,96885.0,96883.0,0.45185775]
[1738983724040,0.0635,96885.0,96883.0,0.2063825]
[1738983724842,0.2063777,96886.0,96883.0,0.2063825]
[1738983725232,0.21651381,96886.0,96883.0,0.2063825]
[1738983726045,0.21651381,96886.0,96881.0,0.24547525]
[1738983726046,0.21651381,96886.0,96884.0,0.2063803]
[1738983726343,0.21751381,96886.0,96884.0,0.2063803]
[1738983729455,0.01113611,96886.0,96884.0,0.2063803]
[1738983730657,0.001,96886.0,96884.0,0.2063803]
[1738983732460,0.001,96886.0,96885.0,0.01613207]
[1738983733659,0.01030675,96892.0,96885.0,0.01613207]
[1738983733860,0.07868,96893.0,96888.0,0.3608]
[1738983734962,0.003,96892.0,96888.0,0.3608]
[1738983736661,0.08919797,96893.0,96889.0,0.0161319]
[1738983736662,0.09219797,96893.0,96889.0,0.0161319]
[1738983736962,0.09219797,96893.0,96885.0,0.47232252]
[1738983736963,0.20637,96890.0,96885.0,0.47232252]
[1738983737167,0.20637,96890.0,96885.0,0.47172252]
[1738983738469,0.20837,96890.0,96886.0,0.47172252]
[1738983738766,0.20837,96890.0,96886.0,0.83932033]
[1738983740858,0.20837,96890.0,96883.0,0.3608]
[1738983740859,0.20837,96890.0,96885.0,0.24592209]
[1738983743067,0.20837,96890.0,96888.0,0.24592209]
[1738983743460,0.002,96890.0,96888.0,0.24592209]
[1738983744267,0.002,96890.0,96888.0,0.45229389]
[1738983745966,0.002,96890.0,96888.0,0.51377441]
[1738983747662,0.002,96890.0,96888.0,0.87457441]
[1738983748662,0.002,96890.0,96889.0,1.04588831]
[1738983749374,0.2063611,96894.0,96889.0,1.04588831]
[1738983749564,0.2063634,96893.0,96889.0,1.04588831]
[1738983750173,0.002,96890.0,96889.0,1.04588831]
[1738983750469,0.2063634,96893.0,96889.0,1.04588831]
[1738983750670,0.2063674,96891.0,96889.0,1.04588831]
[1738983752865,0.2083674,96891.0,96889.0,1.04588831]
[1738983754177,0.2083674,96891.0,96890.0,0.30757499]
[1738983757577,0.2083674,96891.0,96882.0,0.2461665]
[1738983758071,0.002,96891.0,96882.0,0.2461665]
[1738983758278,0.2063696,96890.0,96882.0,0.2461665]
[1738983758480,0.002,96891.0,96882.0,0.2461665]
[1738983758676,0.2063723,96889.0,96882.0,0.2461665]
[1738983759276,0.2840123,96889.0,96882.0,0.2461665]
[1738983759464,0.07764,96889.0,96882.0,0.2461665]
[1738983759667,0.2063762,96887.0,96882.0,0.2461665]
[1738983760079,0.2063782,96886.0,96882.0,0.2461665]
[1738983760779,0.2063782,96886.0,96879.0,0.3608]
[1738983760780,0.2063782,96886.0,96884.0,0.2461665]
[1738983762581,0.2073782,96886.0,96884.0,0.2461665]
[1738983762973,0.2063782,96886.0,96884.0,0.2461665]
[1738983763174,0.001,96886.0,96884.0,0.2461665]
[1738983763478,0.001,96886.0,96884.0,0.4525469]
[1738983765180,0.001,96886.0,96885.0,0.47175037]
[1738983771478,0.001,96886.0,96885.0,1.0459272]
[1738983772276,0.07744,96894.0,96885.0,1.0459272]
[1738983773083,0.2063723,96889.0,96886.0,0.2063759]
[1738983773681,0.07744,96894.0,96887.0,0.2063739]
[1738983775382,0.08044,96894.0,96887.0,0.2063739]
[1738983776091,0.2063639,96893.0,96887.0,0.2063739]
[1738983776390,0.08044,96894.0,96885.0,1.0465272]
[1738983776585,0.2063675,96891.0,96888.0,0.84097886]
[1738983778985,0.2083675,96891.0,96888.0,0.84097886]
[1738983780087,0.2083675,96891.0,96886.0,0.206377]
[1738983780492,0.002,96891.0,96886.0,0.206377]
[1738983780687,0.2063735,96888.0,96884.0,0.3608]
[1738983781395,0.2063735,96888.0,96884.0,0.56718]
[1738983782482,0.002,96891.0,96884.0,0.56718]
[1738983782698,0.2063785,96886.0,96884.0,0.56718]
[1738983783992,0.2073785,96886.0,96884.0,0.56718]
[1738983786002,0.001,96886.0,96884.0,0.56718]
[1738983786401,0.001,96886.0,96884.0,0.87490701]
[1738983789095,0.001,96886.0,96885.0,0.47173486]
[1738983792103,0.001,96886.0,96884.0,0.3614]
[1738983792298,0.2063794,96885.0,96884.0,0.3608]
[1738983793698,0.2063794,96885.0,96883.0,0.30760765]
[1738983794593,0.2063794,96885.0,96884.0,0.77937085]
[1738983796998,0.2063794,96885.0,96880.0,0.00015484]
[1738983798507,0.07608,96893.0,96880.0,0.20654454]
[1738983798706,0.2063822,96884.0,96880.0,0.28710865]
[1738983798908,0.2063864,96882.0,96880.0,0.20654454]
[1738983800104,0.2063864,96882.0,96880.0,0.56734454]
[1738983801502,0.2063864,96882.0,96880.0,0.36095484]
[1738983801708,0.0328,96881.0,96880.0,0.36095484]
[1738983801905,0.0328,96881.0,96880.0,0.00115484]
[1738983802209,0.0959,96881.0,96880.0,0.00115484]
[1738983802907,0.0645,96881.0,96880.0,0.00115484]
[1738983803210,0.0645,96881.0,96880.0,0.00215484]
[1738983808506,0.0645,96881.0,96880.0,0.18662857]
[1738983809914,0.07486299,96881.0,96880.0,0.18662857]
[1738983811712,0.15018299,96881.0,96880.0,0.18662857]
[1738983812411,0.15018299,96881.0,96880.0,0.00215484]
[1738983816526,0.07486299,96881.0,96880.0,0.00215484]
[1738983816726,0.11812299,96881.0,96880.0,0.00215484]
[1738983819726,0.08532299,96881.0,96880.0,0.00215484]
[1738983820727,0.01036299,96881.0,96880.0,0.00215484]
[1738983820926,0.07504,96881.0,96880.0,0.00215484]
[1738983821127,0.07512,96881.0,96880.0,0.00215484]
[1738983821323,0.2063687,96891.0,96880.0,0.00215484]
[1738983821534,0.07512,96890.0,96881.0,0.08056411]
[1738983822636,0.2385713,96889.0,96880.0,0.16128306]
[1738983823822,0.2405713,96889.0,96880.0,0.16128306]
[1738983825542,0.2405713,96889.0,96884.0,0.24603258]
[1738983826440,0.2063761,96887.0,96884.0,0.24603258]
[1738983826737,0.2063785,96886.0,96884.0,0.24603258]
[1738983827835,0.2063785,96886.0,96885.0,0.24603258]
[1738983828941,0.2073785,96886.0,96885.0,0.24603258]
[1738983830337,0.2073785,96886.0,96880.0,0.00015484]
[1738983831428,0.001,96886.0,96880.0,0.00015484]
[1738983831736,0.2063803,96885.0,96880.0,0.00015484]
[1738983831936,0.001,96886.0,96880.0,0.00015484]
[1738983832142,0.2063821,96884.0,96880.0,0.00015484]
[1738983832536,0.001,96886.0,96880.0,0.00015484]
[1738983832733,0.2063852,96883.0,96880.0,0.00015484]
[1738983832933,0.2063876,96882.0,96880.0,0.00015484]
[1738983835037,0.2063876,96882.0,96880.0,0.00115484]
[1738983839836,0.2063876,96882.0,96881.0,0.24603258]
[1738983841947,0.2063876,96882.0,96881.0,0.24703258]
[1738983845644,0.2063876,96882.0,96881.0,0.001]
[1738983861060,0.2063876,96882.0,96881.0,0.30860765]
[1738983864062,0.0322,96889.0,96881.0,0.30860765]
[1738983864263,0.2794542,96888.0,96887.0,0.3608]
[1738983864465,0.2794542,96888.0,96887.0,0.5671752]
[1738983865454,0.2073742,96888.0,96887.0,0.5671752]
[1738983870263,0.001,96888.0,96887.0,0.5671752]
[1738983876973,0.001,96888.0,96887.0,1.03887526]
[1738983877665,0.0728,96892.0,96887.0,1.03887526]
[1738983878073,0.0728,96892.0,96888.0,0.206372]
[1738983878976,0.0728,96892.0,96887.0,0.83310006]
[1738983879169,0.0758,96892.0,96889.0,0.20637]
[1738983879371,0.0758,96892.0,96890.0,0.2063671]
[1738983879677,0.0728,96892.0,96890.0,0.2063671]
[1738983879875,0.0758,96892.0,96890.0,0.2063671]
[1738983881480,0.0748,96892.0,96890.0,0.2063671]
[1738983881776,0.0728,96892.0,96890.0,0.2063671]
[1738983881978,0.0748,96892.0,96890.0,0.2063671]
[1738983884785,0.0748,96892.0,96891.0,0.3608]
[1738983885878,0.0728,96892.0,96891.0,0.3608]
[1738983886074,0.0758,96892.0,96891.0,0.3608]
[1738983886484,0.0758,96892.0,96891.0,1.13998304]
[1738983890287,0.0758,96892.0,96891.0,0.47171056]
[1738983890588,0.0758,96892.0,96891.0,0.83251056]
[1738983891084,0.0758,96892.0,96891.0,0.47171056]
[1738983892081,0.1089,96892.0,96891.0,0.47171056]
[1738983893076,0.1089,96892.0,96887.0,0.18459897]
[1738983894782,0.0758,96892.0,96890.0,0.2063675]
[1738983895791,0.0758,96892.0,96890.0,0.39096647]
[1738983896983,0.0728,96892.0,96890.0,0.39096647]
[1738983897185,0.0758,96892.0,96890.0,0.39096647]
[1738983898991,0.0758,96892.0,96891.0,0.2063667]
[1738983899190,0.0758,96892.0,96891.0,0.51403165]
[1738983902292,0.0758,96892.0,96891.0,1.04719593]
[1738983903787,0.0758,96892.0,96891.0,1.40799593]
[1738983903994,0.0758,96892.0,96891.0,1.41842837]
[1738983904693,0.0758,96892.0,96891.0,1.04719593]
[1738983905492,0.0758,96892.0,96891.0,1.40799593]
[1738983905799,0.0758,96892.0,96891.0,0.5671667]
[1738983906394,0.0758,96892.0,96891.0,0.3608]
[1738983909988,0.0758,96892.0,96891.0,0.54544531]
[1738983910893,0.4366,96892.0,96891.0,0.18464531]
[1738983911094,0.1087,96892.0,96891.0,0.18464531]
[1738983914998,0.2063709,96889.0,96888.0,0.24618684]
[1738983916591,0.2073709,96889.0,96888.0,0.24618684]
[1738983917498,0.21779558,96889.0,96888.0,0.24618684]
[1738983919104,0.01142468,96889.0,96885.0,0.24618684]
[1738983919306,0.2063773,96886.0,96885.0,0.24618684]
[1738983922500,0.2063773,96886.0,96882.0,0.2063855]
[1738983922501,0.2063814,96885.0,96882.0,0.2063855]
[1738983922799,0.206382,96884.0,96882.0,0.2063855]
[1738983929207,0.206382,96884.0,96883.0,0.24618684]
[1738983935304,0.3608,96884.0,96880.0,0.00015484]
[1738983935505,0.2064263,96863.0,96852.0,0.0321]
[1738983935710,0.2782263,96863.0,96852.0,0.0321]
[1738983936009,0.2064448,96855.0,96852.0,0.0321]
[1738983937602,0.2064448,96855.0,96852.0,0.0411]
[1738983938210,0.2064448,96855.0,96852.0,0.0501]
[1738983938405,0.0317,96862.0,96852.0,0.0501]
[1738983938610,0.2064476,96853.0,96852.0,0.0501]
[1738983939498,0.2064476,96853.0,96852.0,0.0411]
[1738983939700,0.2064476,96853.0,96852.0,0.0501]
[1738983942709,0.2064476,96853.0,96852.0,0.018]
[1738983952519,0.07116,96855.0,96853.0,0.2064476]
[1738983953818,0.07116,96855.0,96853.0,0.2244476]
[1738983956023,0.07116,96855.0,96854.0,0.18445845]
[1738983957216,0.07116,96855.0,96854.0,0.19345845]
[1738983957430,0.07116,96855.0,96854.0,0.20145845]
[1738983959117,0.07116,96855.0,96854.0,0.017]
[1738983963030,0.07116,96855.0,96854.0,0.3778]
[1738983967131,0.07116,96855.0,96854.0,0.5842455]
[1738983968220,0.00015484,96863.0,96854.0,0.3778]
[1738983968421,0.00015484,96863.0,96861.0,0.2064295]
[1738983968815,0.00015484,96863.0,96862.0,0.0305]
[1738983970230,0.00015484,96863.0,96862.0,0.0355]
[1738983970421,0.00015484,96863.0,96862.0,0.0415]
[1738983971925,0.00015484,96863.0,96862.0,0.4023]
[1738983972428,0.06887568,96890.0,96862.0,0.4023]
[1738983972626,0.31636507,96900.0,96862.0,0.4023]
[1738983972627,0.07068,96882.0,96875.0,0.5671992]
[1738983975028,0.07068,96882.0,96875.0,0.5681992]
[1738983977537,0.07068,96882.0,96875.0,0.2073992]
[1738983978442,0.07068,96882.0,96881.0,0.1847042]
[1738983979746,0.07068,96882.0,96881.0,0.1857042]
[1738983981639,0.2769455,96883.0,96881.0,0.1857042]
[1738983981944,0.2769455,96883.0,96881.0,0.001]
[1738983984255,0.2063901,96881.0,96876.0,0.2063979]
[1738983984443,0.2063905,96880.0,96876.0,0.2063979]
[1738983985445,0.2063905,96880.0,96876.0,0.2073979]
[1738983985853,0.2063905,96880.0,96876.0,0.2093979]
[1738983986054,0.2063959,96878.0,96876.0,0.2093979]
[1738983987261,0.2063959,96878.0,96876.0,0.2073979]
[1738983987459,0.2063959,96878.0,96876.0,0.2093979]
[1738983987759,0.2063959,96878.0,96876.0,0.2103979]
[1738983990554,0.2063959,96878.0,96876.0,0.004]
[1738983990751,0.0326,96877.0,96876.0,0.004]
[1738983991961,0.0326,96877.0,96876.0,0.005]
[1738983992964,0.2063959,96878.0,96876.0,0.005]
[1738983993164,0.07056,96883.0,96878.0,0.2063935]
[1738983994565,0.07056,96883.0,96878.0,0.2073935]
[1738983997558,0.2769444,96883.0,96878.0,0.21793046]
[1738983999970,0.2063862,96882.0,96878.0,0.21793046]
[1738984001964,0.2063883,96881.0,96878.0,0.21793046]
[1738984002163,0.2063917,96880.0,96878.0,0.21793046]
[1738984002961,0.2063917,96880.0,96878.0,0.21893046]
[1738984003366,0.2063917,96880.0,96878.0,0.52632103]
[1738984003571,0.2063917,96880.0,96878.0,0.52832103]
[1738984005170,0.2063917,96880.0,96878.0,0.51778407]
[1738984005674,0.2063917,96880.0,96878.0,0.31139057]
[1738984010268,0.2063917,96880.0,96878.0,0.003]
[1738984017978,0.2063917,96880.0,96878.0,0.31139057]
[1738984021286,0.2063917,96880.0,96879.0,0.30839057]
[1738984022685,0.2063917,96880.0,96879.0,0.30939057]
[1738984023589,0.07056,96883.0,96879.0,0.30939057]
[1738984023888,0.07056,96883.0,96879.0,0.31139057]
[1738984024090,0.07056,96883.0,96879.0,0.47479387]
[1738984024775,0.07056,96883.0,96879.0,0.47379387]
[1738984025985,0.07056,96883.0,96879.0,0.47279387]
[1738984027593,0.07056,96883.0,96881.0,0.30851117]
[1738984029494,0.07056,96883.0,96881.0,0.30951117]
[1738984030795,0.07056,96883.0,96882.0,0.47179387]
[1738984032889,0.07056,96883.0,96882.0,0.47279387]
[1738984033298,0.3608,96888.0,96882.0,0.47279387]
[1738984033494,0.3093513,96938.0,96883.0,0.04683343]
[1738984033495,0.10052001,96900.0,96883.0,0.04683343]
[1738984033685,0.0322,96919.0,96904.0,0.2063374]
[1738984033892,0.2063094,96918.0,96904.0,0.2063374]
[1738984034098,0.2063094,96918.0,96908.0,0.08056411]
[1738984034890,0.07184,96917.0,96908.0,0.08056411]
[1738984035090,0.07184,96917.0,96904.0,0.2063374]
[1738984035289,0.07184,96917.0,96908.0,0.001]
[1738984035790,0.07192,96916.0,96908.0,0.001]
[1738984036098,0.07192,96916.0,96908.0,0.002]
[1738984037095,0.07192,96916.0,96908.0,0.001]
[1738984037393,0.07692,96916.0,96908.0,0.002]
[1738984038890,0.3608,96912.0,96908.0,0.002]
[1738984040291,0.3608,96912.0,96908.0,0.001]
[1738984040598,0.3658,96912.0,96908.0,0.001]
[1738984040806,0.3658,96912.0,96908.0,0.002]
[1738984043598,0.2063279,96910.0,96908.0,0.002]
[1738984043898,0.3608,96909.0,96908.0,0.002]
[1738984045396,0.3608,96909.0,96908.0,0.001]
[1738984045599,0.3658,96909.0,96908.0,0.002]
[1738984047506,0.37586055,96909.0,96908.0,0.002]
[1738984051213,0.44754055,96909.0,96908.0,0.002]
[1738984065619,0.08674055,96909.0,96908.0,0.002]
[1738984069311,0.08674055,96909.0,96908.0,0.18719304]
[1738984071719,0.08674055,96909.0,96908.0,0.002]
[1738984083927,0.07668,96909.0,96908.0,0.002]
[1738984086022,0.005,96909.0,96908.0,0.002]
[1738984086336,0.0774,96909.0,96908.0,0.002]
[1738984086930,0.005,96909.0,96908.0,0.002]
[1738984087127,0.07784,96909.0,96908.0,0.3628]
[1738984088226,0.07828,96909.0,96908.0,0.3628]
[1738984089027,0.07828,96909.0,96908.0,0.002]
[1738984093931,0.005,96909.0,96908.0,0.002]
[1738984094129,0.07828,96909.0,96908.0,0.002]
[1738984095630,0.2846083,96909.0,96908.0,0.002]
[1738984097633,0.6454083,96909.0,96908.0,0.002]
[1738984102141,0.2846083,96909.0,96908.0,0.002]
[1738984102440,0.6454083,96909.0,96908.0,0.002]
[1738984113050,0.5721283,96909.0,96908.0,0.002]
[1738984113250,0.6452483,96909.0,96908.0,0.002]
[1738984114055,0.6451683,96909.0,96908.0,0.002]
[1738984115356,0.3658,96909.0,96908.0,0.002]
[1738984115650,0.4388,96909.0,96908.0,0.002]
[1738984118354,0.43868,96909.0,96908.0,0.002]
[1738984119057,0.43868,96909.0,96908.0,0.24892405]
[1738984120661,0.3658,96909.0,96908.0,0.24892405]
[1738984120961,0.43852,96909.0,96908.0,0.24892405]
[1738984121851,0.43852,96909.0,96908.0,0.002]
[1738984133369,0.07772,96909.0,96908.0,0.002]
[1738984133567,0.43852,96909.0,96908.0,0.002]
[1738984137268,0.43852,96909.0,96908.0,0.18670421]
[1738984140583,0.43852,96909.0,96908.0,0.002]
[1738984149886,0.79932,96909.0,96908.0,0.002]
[1738984151082,0.7984,96909.0,96908.0,0.002]
[1738984160686,0.4376,96909.0,96908.0,0.002]
[1738984161786,0.44256,96909.0,96908.0,0.002]
[1738984165993,0.3658,96909.0,96908.0,0.002]
[1738984166298,0.44256,96909.0,96908.0,0.002]
[1738984168996,0.08176,96909.0,96908.0,0.002]
[1738984172093,0.005,96909.0,96908.0,0.002]
[1738984173898,0.08116,96909.0,96908.0,0.002]
[1738984184011,0.005,96909.0,96908.0,0.002]
[1738984200523,0.0684,96909.0,96898.0,0.18490051]
[1738984200738,0.3608,96903.0,96898.0,0.18490051]
[1738984201524,0.3608,96903.0,96898.0,0.00015484]
[1738984201525,0.2063497,96899.0,96898.0,0.00015484]
[1738984201718,0.2063497,96899.0,96898.0,0.00115484]
[1738984202224,0.2063497,96899.0,96898.0,0.00215484]
[1738984202822,0.2123497,96899.0,96898.0,0.00115484]
[1738984203523,0.5731497,96899.0,96898.0,0.00015484]
[1738984203723,0.5731497,96899.0,96898.0,0.00115484]
[1738984206226,0.58357583,96899.0,96898.0,0.00115484]
[1738984206927,0.2063795,96885.0,96884.0,0.18482127]
[1738984207124,0.6416595,96885.0,96884.0,0.18482127]
[1738984208231,0.6416595,96885.0,96875.0,0.00015484]
[1738984208232,0.2063986,96876.0,96875.0,0.00015484]
[1738984208417,0.5671986,96876.0,96875.0,0.00015484]
[1738984209622,0.5671986,96876.0,96875.0,0.00315484]
[1738984210126,0.5671986,96876.0,96875.0,0.00515484]
[1738984211430,0.9279986,96876.0,96875.0,0.00515484]
[1738984211835,0.9279986,96876.0,96861.0,0.36921555]
[1738984211836,1.2417,96876.0,96861.0,0.36921555]
[1738984212035,0.3608,96862.0,96844.0,0.43221152]
[1738984212337,0.3608,96862.0,96834.0,0.0303]
[1738984212338,0.2064786,96839.0,96837.0,0.34066308]
[1738984212521,0.07424,96838.0,96837.0,0.34066308]
[1738984214033,0.07424,96838.0,96837.0,0.34866308]
[1738984214830,0.07524,96838.0,96837.0,0.35566308]
[1738984215033,0.07516,96838.0,96837.0,0.35566308]
[1738984217638,0.07516,96838.0,96837.0,0.048]
[1738984226135,0.08534183,96838.0,96837.0,0.048]
[1738984227544,0.08534183,96838.0,96828.0,0.00015484]
[1738984227740,0.3608,96829.0,96828.0,0.00015484]
[1738984228644,0.3608,96829.0,96828.0,0.00915484]
[1738984228843,0.3618,96829.0,96828.0,0.01815484]
[1738984229443,0.5682988,96829.0,96828.0,0.01815484]
[1738984239146,0.5692988,96829.0,96828.0,0.01815484]
[1738984240044,0.5692988,96829.0,96828.0,0.01715484]
[1738984240836,0.2084988,96829.0,96828.0,0.01715484]
[1738984241038,0.5692988,96829.0,96828.0,0.01715484]
[1738984242342,0.6421388,96829.0,96828.0,0.01715484]
[1738984243846,0.3608,96859.0,96858.0,0.206437]
[1738984244046,0.3608,96880.0,96866.0,0.2064191]
[1738984244237,0.3608,96880.0,96873.0,0.3608]
[1738984244550,0.07296,96879.0,96873.0,0.3608]
[1738984244738,0.3608,96880.0,96873.0,0.3608]
[1738984244944,0.07296,96879.0,96873.0,0.3608]
[1738984245144,0.07296,96879.0,96876.0,0.206397]
[1738984245345,0.3608,96880.0,96873.0,0.3608]
[1738984245542,0.07292,96878.0,96873.0,0.3608]
[1738984245754,0.02302,96878.0,96873.0,0.3608]
[1738984245942,0.02302,96878.0,96873.0,0.3618]
[1738984246444,0.02302,96878.0,96877.0,0.2063965]
[1738984246845,0.03202,96878.0,96877.0,0.2063965]
[1738984247639,0.04002,96878.0,96877.0,0.2063965]
[1738984248143,0.04002,96878.0,96877.0,0.2073965]
[1738984248344,0.009,96878.0,96877.0,0.2083965]
[1738984257555,0.009,96878.0,96877.0,0.5691965]
[1738984269356,0.2153944,96878.0,96877.0,0.3628]
[1738984271156,0.2153944,96878.0,96877.0,0.002]
[1738984272459,0.009,96878.0,96877.0,0.002]
[1738984274659,0.3698,96878.0,96877.0,0.002]
[1738984282160,0.4006,96878.0,96877.0,0.002]
[1738984285366,0.0398,96878.0,96877.0,0.002]
[1738984291475,0.2461944,96878.0,96877.0,0.002]
[1738984294180,0.3173944,96878.0,96877.0,0.002]
[1738984294679,0.6781944,96878.0,96877.0,0.002]
[1738984300785,0.4718,96878.0,96867.0,0.00015484]
[1738984300982,0.2064157,96868.0,96867.0,0.00015484]
[1738984301875,0.47232001,96878.0,96867.0,0.00015484]
[1738984302082,0.4628,96878.0,96867.0,0.00015484]
[1738984302267,0.004,96868.0,96867.0,0.00115484]
[1738984303374,0.011,96868.0,96867.0,0.00115484]
[1738984306879,0.08296,96868.0,96867.0,0.00115484]
[1738984308573,0.011,96868.0,96867.0,0.00115484]
[1738984309080,0.011,96868.0,96867.0,0.07633811]
[1738984310481,0.00015484,96886.0,96884.0,0.2063802]
[1738984310680,0.00015484,96886.0,96885.0,0.0649]
[1738984311884,0.01315484,96886.0,96885.0,0.0659]
[1738984312584,0.01315484,96886.0,96885.0,0.0669]
[1738984313575,0.01315484,96886.0,96885.0,0.0999]
[1738984315078,0.57619247,96900.0,96886.0,0.2063763]
[1738984315376,0.3608,96900.0,96890.0,0.48363995]
[1738984315784,0.3608,96900.0,96891.0,0.2063667]
[1738984315972,0.3608,96900.0,96897.0,0.2063522]
[1738984316177,0.3648,96900.0,96897.0,0.2063522]
[1738984316982,0.004,96900.0,96897.0,0.2063522]
[1738984318186,0.2779826,96903.0,96897.0,0.2063522]
[1738984319977,0.2779826,96903.0,96897.0,0.2073522]
[1738984321386,0.2063535,96898.0,96890.0,0.567928]
[1738984321586,0.2063535,96898.0,96897.0,0.001]
[1738984322389,0.2063535,96898.0,96891.0,0.2063664]
[1738984323675,0.07164,96903.0,96890.0,0.3618]
[1738984323879,0.07164,96903.0,96899.0,0.2063491]
[1738984325083,0.2063422,96903.0,96899.0,0.001]
[1738984325284,0.07112,96902.0,96899.0,0.001]
[1738984328589,0.2063454,96901.0,96899.0,0.001]
[1738984331283,0.2063454,96901.0,96895.0,0.2063576]
[1738984331487,0.2063454,96901.0,96899.0,0.001]
[1738984331883,0.07092,96900.0,96899.0,0.001]
[1738984332087,0.206319,96914.0,96904.0,0.206337]
[1738984332298,0.07092,96913.0,96905.0,0.0311]
[1738984332686,0.2772406,96913.0,96905.0,0.0311]
[1738984333097,0.07092,96912.0,96905.0,0.0311]
[1738984333597,0.07092,96912.0,96905.0,0.0321]
[1738984334099,0.07092,96912.0,96905.0,0.0311]
[1738984334291,0.07092,96912.0,96905.0,0.0321]
[1738984334793,0.07092,96912.0,96905.0,0.0331]
[1738984336798,0.2772436,96912.0,96905.0,0.0331]
[1738984337395,0.2063286,96909.0,96905.0,0.0331]
[1738984337793,0.07092,96912.0,96905.0,0.0331]
[1738984339300,0.07092,96912.0,96905.0,0.0321]
[1738984339503,0.07092,96912.0,96905.0,0.0331]
[1738984339703,0.2772428,96912.0,96905.0,0.0331]
[1738984340005,0.2063249,96911.0,96905.0,0.0331]
[1738984340908,0.07092,96912.0,96905.0,0.0331]
[1738984341102,0.2063273,96910.0,96905.0,0.0331]
[1738984341502,0.2063273,96910.0,96905.0,0.0321]
[1738984341809,0.2063273,96910.0,96905.0,0.0331]